[Event "*** Titled Tuesday Blitz"]
[Site "Chess.com"]
[Date "2020.04.28"]
[Round "1"]
[White "tacticthunder"]
[Black "Nafania1"]
[Result "1/2-1/2"]
[WhiteElo "2673"]
[BlackElo "2353"]
[TimeControl "180+1"]
[EndTime "10:08:35 PDT"]
[Termination "Game drawn by repetition"]

1. e4 {[%clk 0:03:00.9]} 1... e6 {[%clk 0:02:59.9]} 2. d4 {[%clk 0:03:00.3]}
2... d5 {[%clk 0:03:00]} 3. Nc3 {[%clk 0:02:56.5]} 3... h6 {[%clk 0:02:58.4]} 4.
Bd3 {[%clk 0:02:49.6]} 4... Nc6 {[%clk 0:02:57]} 5. Nge2 {[%clk 0:02:49.1]} 5...
Nb4 {[%clk 0:02:56.8]} 6. Bb5+ {[%clk 0:02:45.5]} 6... c6 {[%clk 0:02:57.2]} 7.
Ba4 {[%clk 0:02:45.5]} 7... a5 {[%clk 0:02:46.7]} 8. a3 {[%clk 0:02:36]} 8...
Na6 {[%clk 0:02:46.3]} 9. Bb3 {[%clk 0:02:21.6]} 9... b5 {[%clk 0:02:38.2]} 10.
Ng3 {[%clk 0:02:17.3]} 10... a4 {[%clk 0:02:36.4]} 11. Ba2 {[%clk 0:02:17.1]}
11... Nf6 {[%clk 0:02:29.7]} 12. O-O {[%clk 0:02:16.3]} 12... dxe4 {[%clk
0:02:04.4]} 13. Ncxe4 {[%clk 0:02:14.3]} 13... Be7 {[%clk 0:02:04.8]} 14. c3
{[%clk 0:02:07.8]} 14... O-O {[%clk 0:02:04.2]} 15. Nxf6+ {[%clk 0:02:03.8]}
15... Bxf6 {[%clk 0:02:04]} 16. Bb1 {[%clk 0:02:04]} 16... Bg5 {[%clk
0:01:50.8]} 17. f4 {[%clk 0:01:47.8]} 17... Bh4 {[%clk 0:01:48.1]} 18. Be3
{[%clk 0:01:45.6]} 18... Nc7 {[%clk 0:01:46.5]} 19. Qg4 {[%clk 0:01:23.9]} 19...
f5 {[%clk 0:01:44.8]} 20. Qf3 {[%clk 0:01:22.1]} 20... Nd5 {[%clk 0:01:44.8]}
21. Bc2 {[%clk 0:01:19.7]} 21... Bxg3 {[%clk 0:01:32.8]} 22. Qxg3 {[%clk
0:01:14.3]} 22... Rf6 {[%clk 0:01:30]} 23. Rae1 {[%clk 0:01:10.9]} 23... Bd7
{[%clk 0:01:29.6]} 24. Bf2 {[%clk 0:01:04.5]} 24... Qe8 {[%clk 0:01:27.9]} 25.
Re5 {[%clk 0:01:02.4]} 25... Rg6 {[%clk 0:01:20.7]} 26. Qf3 {[%clk 0:01:00.7]}
26... Qf7 {[%clk 0:01:18.6]} 27. Rfe1 {[%clk 0:01:00.6]} 27... Rg4 {[%clk
0:01:15.1]} 28. Bg3 {[%clk 0:00:59.4]} 28... Qg6 {[%clk 0:01:13.7]} 29. Kf2
{[%clk 0:00:54.5]} 29... Qf7 {[%clk 0:01:11.8]} 30. h3 {[%clk 0:00:52.6]} 30...
Rg6 {[%clk 0:01:11.6]} 31. Bh2 {[%clk 0:00:50.4]} 31... Rf8 {[%clk 0:01:09.1]}
32. Kg1 {[%clk 0:00:49.5]} 32... Kh8 {[%clk 0:01:06.3]} 33. Kh1 {[%clk
0:00:49.8]} 33... Qf6 {[%clk 0:01:02.9]} 34. Rf1 {[%clk 0:00:48.8]} 34... Qh4
{[%clk 0:01:02.5]} 35. b3 {[%clk 0:00:44.2]} 35... axb3 {[%clk 0:01:01.5]} 36.
Bxb3 {[%clk 0:00:45.1]} 36... Ra8 {[%clk 0:01:00.2]} 37. c4 {[%clk 0:00:44.6]}
37... bxc4 {[%clk 0:00:58.1]} 38. Bxc4 {[%clk 0:00:45.5]} 38... Kh7 {[%clk
0:00:55]} 39. Ra1 {[%clk 0:00:41.7]} 39... Qd8 {[%clk 0:00:51.8]} 40. a4 {[%clk
0:00:41.3]} 40... Qb6 {[%clk 0:00:51.3]} 41. Qd3 {[%clk 0:00:37.7]} 41... c5
{[%clk 0:00:45.8]} 42. dxc5 {[%clk 0:00:33.1]} 42... Qxc5 {[%clk 0:00:46.1]} 43.
Bxd5 {[%clk 0:00:30.9]} 43... exd5 {[%clk 0:00:46]} 44. Rxd5 {[%clk 0:00:31.8]}
44... Qf2 {[%clk 0:00:43.4]} 45. Qd2 {[%clk 0:00:23.9]} 45... Qxd2 {[%clk
0:00:42.1]} 46. Rxd2 {[%clk 0:00:24.8]} 46... Rxa4 {[%clk 0:00:38.2]} 47. Rxa4
{[%clk 0:00:22.7]} 47... Bxa4 {[%clk 0:00:38.2]} 48. Bg1 {[%clk 0:00:23.4]}
48... Bc6 {[%clk 0:00:38.1]} 49. Kh2 {[%clk 0:00:23.5]} 49... Re6 {[%clk
0:00:37.1]} 50. Bd4 {[%clk 0:00:22.6]} 50... Re7 {[%clk 0:00:36.6]} 51. Be5
{[%clk 0:00:22.6]} 51... Be4 {[%clk 0:00:36.7]} 52. g4 {[%clk 0:00:21.6]} 52...
Rb7 {[%clk 0:00:30.3]} 53. Kg3 {[%clk 0:00:19.6]} 53... Rb3+ {[%clk 0:00:25.7]}
54. Kh4 {[%clk 0:00:19.9]} 54... Rd3 {[%clk 0:00:25.7]} 55. Rb2 {[%clk
0:00:17.8]} 55... Rd7 {[%clk 0:00:25.2]} 56. g5 {[%clk 0:00:17.4]} 56... hxg5+
{[%clk 0:00:23.5]} 57. Kxg5 {[%clk 0:00:16.1]} 57... Rd3 {[%clk 0:00:23.4]} 58.
Kh4 {[%clk 0:00:13.1]} 58... Rd7 {[%clk 0:00:22.7]} 59. Ra2 {[%clk 0:00:13.3]}
59... Rb7 {[%clk 0:00:21.6]} 60. Kg5 {[%clk 0:00:13]} 60... Rb3 {[%clk 0:00:21]}
61. Ra7 {[%clk 0:00:12.9]} 61... Rg3+ {[%clk 0:00:20.3]} 62. Kh4 {[%clk
0:00:12.4]} 62... Rg1 {[%clk 0:00:19.6]} 63. Re7 {[%clk 0:00:11.9]} 63... Rg2
{[%clk 0:00:18.7]} 64. Rd7 {[%clk 0:00:10.5]} 64... Rg1 {[%clk 0:00:17.8]} 65.
Rc7 {[%clk 0:00:10.9]} 65... Rg2 {[%clk 0:00:17.7]} 66. Kh5 {[%clk 0:00:09.8]}
66... Bf3+ {[%clk 0:00:16.1]} 67. Kh4 {[%clk 0:00:09.9]} 67... Be4 {[%clk
0:00:15.5]} 68. Re7 {[%clk 0:00:10]} 68... Rg1 {[%clk 0:00:14.6]} 69. Rc7 {[%clk
0:00:09.4]} 69... Rg2 {[%clk 0:00:14.1]} 1/2-1/2

[Event "*** Titled Tuesday Blitz"]
[Site "Chess.com"]
[Date "2020.04.28"]
[Round "1"]
[White "KubaGepard"]
[Black "swapchess90"]
[Result "1-0"]
[WhiteElo "2406"]
[BlackElo "2689"]
[TimeControl "180+1"]
[EndTime "10:08:36 PDT"]
[Termination "KubaGepard won by resignation"]

1. d4 {[%clk 0:03:00.9]} 1... Nf6 {[%clk 0:02:59.7]} 2. Nf3 {[%clk 0:03:00.9]}
2... d5 {[%clk 0:02:59.7]} 3. Bf4 {[%clk 0:03:00.5]} 3... e6 {[%clk 0:02:59.8]}
4. e3 {[%clk 0:03:00.5]} 4... c5 {[%clk 0:03:00]} 5. c3 {[%clk 0:03:00]} 5...
Bd6 {[%clk 0:03:00.1]} 6. Bb5+ {[%clk 0:02:59.4]} 6... Kf8 {[%clk 0:02:50.9]} 7.
Bxd6+ {[%clk 0:02:55.9]} 7... Qxd6 {[%clk 0:02:50.7]} 8. Nbd2 {[%clk 0:02:55.6]}
8... Qb6 {[%clk 0:02:44.9]} 9. a4 {[%clk 0:02:43.2]} 9... cxd4 {[%clk
0:02:41.6]} 10. cxd4 {[%clk 0:02:17]} 10... a6 {[%clk 0:02:40]} 11. Rc1 {[%clk
0:02:16.3]} 11... Bd7 {[%clk 0:02:29.4]} 12. Bxd7 {[%clk 0:02:15.6]} 12... Nbxd7
{[%clk 0:02:30.3]} 13. O-O {[%clk 0:02:10.8]} 13... Ke7 {[%clk 0:02:30.3]} 14.
b4 {[%clk 0:01:58]} 14... Rhc8 {[%clk 0:02:27.8]} 15. Qb3 {[%clk 0:01:57]} 15...
Qd6 {[%clk 0:02:13.3]} 16. h3 {[%clk 0:01:40]} 16... h6 {[%clk 0:02:11.2]} 17.
Rfd1 {[%clk 0:01:29.1]} 17... Kf8 {[%clk 0:01:57.6]} 18. Ne1 {[%clk 0:01:27.9]}
18... Ne4 {[%clk 0:01:50.6]} 19. Ndf3 {[%clk 0:01:20.4]} 19... b6 {[%clk
0:01:41]} 20. Nd3 {[%clk 0:01:19.5]} 20... f6 {[%clk 0:01:36.9]} 21. Qb1 {[%clk
0:01:05.3]} 21... Kf7 {[%clk 0:01:27.7]} 22. Qb2 {[%clk 0:00:59.4]} 22... g5
{[%clk 0:01:24.1]} 23. Nd2 {[%clk 0:00:56.8]} 23... h5 {[%clk 0:01:11.9]} 24. f3
{[%clk 0:00:55.6]} 24... Ng3 {[%clk 0:01:07.1]} 25. Nf1 {[%clk 0:00:52]} 25...
h4 {[%clk 0:00:55.1]} 26. Nxg3 {[%clk 0:00:49.2]} 26... Qxg3 {[%clk 0:00:54.7]}
27. b5 {[%clk 0:00:35.1]} 27... a5 {[%clk 0:00:50.1]} 28. Qa2 {[%clk 0:00:30.9]}
28... Qd6 {[%clk 0:00:45.4]} 29. Rc2 {[%clk 0:00:28.3]} 29... Ke7 {[%clk
0:00:40.4]} 30. Rdc1 {[%clk 0:00:27.7]} 30... Kd8 {[%clk 0:00:40.6]} 31. Rc3
{[%clk 0:00:24.3]} 31... Rxc3 {[%clk 0:00:38.8]} 32. Rxc3 {[%clk 0:00:24.7]}
32... Rc8 {[%clk 0:00:39.7]} 33. Qc2 {[%clk 0:00:24.1]} 33... Rxc3 {[%clk
0:00:39.2]} 34. Qxc3 {[%clk 0:00:25]} 34... Qc7 {[%clk 0:00:24.6]} 35. Qxc7+
{[%clk 0:00:23.4]} 35... Kxc7 {[%clk 0:00:25.5]} 36. Kf2 {[%clk 0:00:23.3]}
36... Kd6 {[%clk 0:00:25.6]} 37. g3 {[%clk 0:00:23.1]} 37... hxg3+ {[%clk
0:00:25.6]} 38. Kxg3 {[%clk 0:00:24]} 38... e5 {[%clk 0:00:24]} 39. Kg4 {[%clk
0:00:23.5]} 39... exd4 {[%clk 0:00:22.7]} 40. exd4 {[%clk 0:00:23.1]} 40... Ke6
{[%clk 0:00:22.9]} 41. f4 {[%clk 0:00:23.1]} 41... gxf4 {[%clk 0:00:21.1]} 42.
Kxf4 {[%clk 0:00:23.6]} 42... Nf8 {[%clk 0:00:20.6]} 43. Kg4 {[%clk 0:00:22.5]}
43... Ng6 {[%clk 0:00:17.7]} 44. Nf4+ {[%clk 0:00:22.2]} 44... Kf7 {[%clk
0:00:16.7]} 45. Kf5 {[%clk 0:00:19.7]} 45... Ne7+ {[%clk 0:00:15.7]} 46. Kg4
{[%clk 0:00:18.9]} 46... Kg7 {[%clk 0:00:13.2]} 47. h4 {[%clk 0:00:18.8]} 47...
Kh6 {[%clk 0:00:13.7]} 48. h5 {[%clk 0:00:18.5]} 48... f5+ {[%clk 0:00:12.7]}
49. Kh4 {[%clk 0:00:18.7]} 49... Nc8 {[%clk 0:00:10]} 50. Nxd5 {[%clk 0:00:18]}
50... Nd6 {[%clk 0:00:10.9]} 51. Ne7 {[%clk 0:00:17.8]} 51... f4 {[%clk
0:00:10.8]} 52. Kg4 {[%clk 0:00:17.8]} 52... f3 {[%clk 0:00:09.7]} 53. Kxf3
{[%clk 0:00:18.2]} 53... Kxh5 {[%clk 0:00:10.6]} 54. Kf4 {[%clk 0:00:18.5]}
54... Nc4 {[%clk 0:00:09.6]} 55. Nd5 {[%clk 0:00:17.3]} 55... Kg6 {[%clk
0:00:09.2]} 56. Ke4 {[%clk 0:00:17]} 56... Kf7 {[%clk 0:00:09.2]} 57. Kf5 {[%clk
0:00:15.1]} 57... Ke8 {[%clk 0:00:08.6]} 58. Ke6 {[%clk 0:00:14.9]} 58... Kd8
{[%clk 0:00:08.8]} 59. Nc3 {[%clk 0:00:13.3]} 59... Kc7 {[%clk 0:00:07.8]} 60.
d5 {[%clk 0:00:13.4]} 60... Nd6 {[%clk 0:00:08.2]} 61. Ne2 {[%clk 0:00:13.3]}
61... Nc4 {[%clk 0:00:07.2]} 62. Nd4 {[%clk 0:00:13.3]} 62... Nd6 {[%clk
0:00:05.7]} 63. Nf5 {[%clk 0:00:13.3]} 63... Nc4 {[%clk 0:00:03.4]} 64. d6+
{[%clk 0:00:13.4]} 64... Kd8 {[%clk 0:00:03.8]} 65. Ne7 {[%clk 0:00:13.2]} 65...
Nb2 {[%clk 0:00:03.3]} 66. Nc6+ {[%clk 0:00:13.1]} 1-0

[Event "*** Titled Tuesday Blitz"]
[Site "Chess.com"]
[Date "2020.04.28"]
[Round "1"]
[White "Durarbayli"]
[Black "Future2700"]
[Result "1-0"]
[WhiteElo "2777"]
[BlackElo "2415"]
[TimeControl "180+1"]
[EndTime "10:08:38 PDT"]
[Termination "Durarbayli won by resignation"]

1. e4 {[%clk 0:03:00.9]} 1... c5 {[%clk 0:02:59]} 2. Nf3 {[%clk 0:03:00.5]} 2...
e6 {[%clk 0:02:59.3]} 3. d4 {[%clk 0:03:00.5]} 3... cxd4 {[%clk 0:03:00.2]} 4.
Nxd4 {[%clk 0:03:01.3]} 4... Nc6 {[%clk 0:03:00.8]} 5. Nc3 {[%clk 0:03:01.2]}
5... Qc7 {[%clk 0:03:00]} 6. g3 {[%clk 0:03:00.9]} 6... Bb4 {[%clk 0:02:53.4]}
7. Bg2 {[%clk 0:02:56]} 7... Nf6 {[%clk 0:02:53.7]} 8. Nb5 {[%clk 0:02:48.3]}
8... Qb8 {[%clk 0:02:53.1]} 9. Bf4 {[%clk 0:02:45.9]} 9... e5 {[%clk 0:02:47.6]}
10. Bg5 {[%clk 0:02:45.6]} 10... a6 {[%clk 0:02:46.1]} 11. Bxf6 {[%clk
0:02:37.5]} 11... gxf6 {[%clk 0:02:38.3]} 12. Na3 {[%clk 0:02:35.3]} 12... b5
{[%clk 0:02:26]} 13. O-O {[%clk 0:02:33.9]} 13... Bxc3 {[%clk 0:02:13.8]} 14.
bxc3 {[%clk 0:02:34.8]} 14... Qc7 {[%clk 0:02:09.9]} 15. Qf3 {[%clk 0:02:23.5]}
15... Qd6 {[%clk 0:01:43.5]} 16. Nb1 {[%clk 0:02:15.6]} 16... Qe7 {[%clk
0:01:25.4]} 17. a4 {[%clk 0:02:12.4]} 17... Rb8 {[%clk 0:01:20.9]} 18. axb5
{[%clk 0:02:11.4]} 18... axb5 {[%clk 0:01:21.8]} 19. Rd1 {[%clk 0:02:08.3]}
19... d6 {[%clk 0:01:18.5]} 20. Nd2 {[%clk 0:02:03.8]} 20... Be6 {[%clk
0:01:16.4]} 21. Nf1 {[%clk 0:02:03.7]} 21... O-O {[%clk 0:01:13.2]} 22. Ne3
{[%clk 0:02:02.2]} 22... Rfc8 {[%clk 0:01:11.1]} 23. Qh5 {[%clk 0:01:23.6]}
23... b4 {[%clk 0:01:03.4]} 24. Bh3 {[%clk 0:01:23]} 24... bxc3 {[%clk 0:01:00]}
25. Bf5 {[%clk 0:01:22.3]} 25... Bxf5 {[%clk 0:00:46.1]} 26. Nxf5 {[%clk
0:01:23.2]} 26... Qf8 {[%clk 0:00:46.4]} 27. Qg4+ {[%clk 0:01:16.1]} 27... Kh8
{[%clk 0:00:46.3]} 28. Qh4 {[%clk 0:01:16.6]} 28... h6 {[%clk 0:00:36.1]} 29.
Nxh6 {[%clk 0:01:00.4]} 29... Nd4 {[%clk 0:00:28]} 30. Nf5+ {[%clk 0:00:45.7]}
30... Kg8 {[%clk 0:00:27.9]} 31. Qg4+ {[%clk 0:00:35.8]} 31... Kh7 {[%clk
0:00:27.5]} 32. Nxd4 {[%clk 0:00:35.4]} 32... exd4 {[%clk 0:00:27.3]} 33. Rxd4
{[%clk 0:00:33.9]} 33... Rc5 {[%clk 0:00:27.6]} 34. Rad1 {[%clk 0:00:19.9]}
34... Rb6 {[%clk 0:00:26.3]} 35. Qh4+ {[%clk 0:00:16.4]} 35... Kg8 {[%clk
0:00:25.8]} 36. Qf4 {[%clk 0:00:16.4]} 36... Rg5 {[%clk 0:00:24.4]} 37. Qxf6
{[%clk 0:00:14.7]} 37... Rg6 {[%clk 0:00:24.2]} 38. Qf5 {[%clk 0:00:14.7]} 38...
Rc6 {[%clk 0:00:23.2]} 39. e5 {[%clk 0:00:14.8]} 39... Rc5 {[%clk 0:00:22.9]}
40. Re4 {[%clk 0:00:08.9]} 40... Rxe5 {[%clk 0:00:22.6]} 41. Rxe5 {[%clk
0:00:09.8]} 41... dxe5 {[%clk 0:00:23.5]} 42. Qxe5 {[%clk 0:00:10.3]} 42... Qg7
{[%clk 0:00:23.2]} 43. Qxg7+ {[%clk 0:00:09.9]} 43... Kxg7 {[%clk 0:00:22.8]}
44. Rd3 {[%clk 0:00:10.8]} 44... Rc6 {[%clk 0:00:23.3]} 45. Kf1 {[%clk
0:00:11.2]} 45... Rc4 {[%clk 0:00:23.7]} 46. Ke2 {[%clk 0:00:11.6]} 46... Re4+
{[%clk 0:00:23.7]} 47. Re3 {[%clk 0:00:12.2]} 47... Rc4 {[%clk 0:00:23.7]} 48.
Kd3 {[%clk 0:00:13.1]} 48... Rc6 {[%clk 0:00:24.4]} 49. Re4 {[%clk 0:00:13.3]}
49... Rh6 {[%clk 0:00:24.9]} 50. Rg4+ {[%clk 0:00:13.2]} 50... Kf8 {[%clk
0:00:24.8]} 51. h4 {[%clk 0:00:12.3]} 51... Rc6 {[%clk 0:00:25.3]} 52. Rd4
{[%clk 0:00:12.5]} 52... Rf6 {[%clk 0:00:25.8]} 53. Rf4 {[%clk 0:00:12.5]} 53...
Rd6+ {[%clk 0:00:25.9]} 54. Kxc3 {[%clk 0:00:12.6]} 54... Rc6+ {[%clk
0:00:26.3]} 55. Kd3 {[%clk 0:00:13.5]} 55... Rd6+ {[%clk 0:00:26.4]} 56. Ke2
{[%clk 0:00:13.4]} 56... Rc6 {[%clk 0:00:26.3]} 57. c4 {[%clk 0:00:14.3]} 57...
Kg7 {[%clk 0:00:24.7]} 58. Kf3 {[%clk 0:00:14.7]} 58... Rd6 {[%clk 0:00:24.5]}
59. Ke3 {[%clk 0:00:15]} 59... Re6+ {[%clk 0:00:24.6]} 60. Kd4 {[%clk
0:00:15.2]} 60... Rd6+ {[%clk 0:00:25]} 61. Kc5 {[%clk 0:00:15.7]} 61... Rd2
{[%clk 0:00:25.2]} 62. Kc6 {[%clk 0:00:15.6]} 62... Rc2 {[%clk 0:00:25.4]} 63.
c5 {[%clk 0:00:16.1]} 63... Rb2 {[%clk 0:00:25.3]} 64. Kd6 {[%clk 0:00:16.6]}
64... Rd2+ {[%clk 0:00:25.5]} 65. Kc7 {[%clk 0:00:16.4]} 65... Kf8 {[%clk
0:00:25.1]} 66. c6 {[%clk 0:00:16.8]} 66... Ke7 {[%clk 0:00:24.8]} 67. Re4+
{[%clk 0:00:16.5]} 67... Kf8 {[%clk 0:00:24.5]} 68. f3 {[%clk 0:00:16.8]} 68...
Rd3 {[%clk 0:00:23]} 69. Rf4 {[%clk 0:00:17.2]} 69... Rd2 {[%clk 0:00:22.4]} 70.
h5 {[%clk 0:00:17.5]} 70... Kg7 {[%clk 0:00:21.7]} 71. g4 {[%clk 0:00:16.9]}
71... Rd5 {[%clk 0:00:21.3]} 72. Rf5 {[%clk 0:00:17.1]} 72... Rd3 {[%clk
0:00:20.8]} 73. Kc8 {[%clk 0:00:17.3]} 73... Rd4 {[%clk 0:00:19.2]} 74. c7
{[%clk 0:00:17.7]} 74... Rb4 {[%clk 0:00:19.3]} 75. Kd7 {[%clk 0:00:17.7]} 75...
Rd4+ {[%clk 0:00:19.7]} 76. Kc6 {[%clk 0:00:18]} 76... Rc4+ {[%clk 0:00:20]} 77.
Rc5 {[%clk 0:00:18.4]} 1-0

[Event "*** Titled Tuesday Blitz"]
[Site "Chess.com"]
[Date "2020.04.28"]
[Round "1"]
[White "vanyakuba"]
[Black "PavlovDanila"]
[Result "1/2-1/2"]
[WhiteElo "2412"]
[BlackElo "2750"]
[TimeControl "180+1"]
[EndTime "10:08:38 PDT"]
[Termination "Game drawn - insufficient material"]

1. e4 {[%clk 0:03:00.8]} 1... e6 {[%clk 0:02:59.5]} 2. d4 {[%clk 0:03:00.8]}
2... d5 {[%clk 0:03:00.1]} 3. exd5 {[%clk 0:03:01.2]} 3... exd5 {[%clk 0:03:01]}
4. Nf3 {[%clk 0:03:01.2]} 4... Nc6 {[%clk 0:03:00.9]} 5. c4 {[%clk 0:03:01.5]}
5... dxc4 {[%clk 0:02:58.7]} 6. Bxc4 {[%clk 0:03:01.1]} 6... Bd6 {[%clk
0:02:59.3]} 7. O-O {[%clk 0:03:01.1]} 7... Bg4 {[%clk 0:02:54.3]} 8. Nc3 {[%clk
0:02:58.9]} 8... Nf6 {[%clk 0:02:51.2]} 9. h3 {[%clk 0:02:56.5]} 9... Bh5 {[%clk
0:02:48.2]} 10. Re1+ {[%clk 0:02:56.1]} 10... Be7 {[%clk 0:02:47.5]} 11. Be3
{[%clk 0:02:46.3]} 11... O-O {[%clk 0:02:43.2]} 12. g4 {[%clk 0:02:45.7]} 12...
Nxg4 {[%clk 0:02:09.4]} 13. hxg4 {[%clk 0:02:44.7]} 13... Bxg4 {[%clk
0:02:10.3]} 14. Bf4 {[%clk 0:02:39.5]} 14... Bd6 {[%clk 0:01:56.6]} 15. Bg3
{[%clk 0:02:16.9]} 15... Bxg3 {[%clk 0:01:46.4]} 16. fxg3 {[%clk 0:02:16.8]}
16... Qf6 {[%clk 0:01:46.3]} 17. Bd5 {[%clk 0:02:00.6]} 17... Rad8 {[%clk
0:01:33]} 18. Bxc6 {[%clk 0:01:59.9]} 18... bxc6 {[%clk 0:01:32.1]} 19. Rf1
{[%clk 0:01:49.8]} 19... Rfe8 {[%clk 0:01:31.5]} 20. Qd3 {[%clk 0:01:49.6]}
20... c5 {[%clk 0:01:24.6]} 21. d5 {[%clk 0:01:45.9]} 21... c6 {[%clk
0:01:21.2]} 22. Rad1 {[%clk 0:01:18.4]} 22... cxd5 {[%clk 0:01:09.8]} 23. Nxd5
{[%clk 0:01:17.8]} 23... Qxb2 {[%clk 0:01:06.6]} 24. Ng5 {[%clk 0:01:02.9]}
24... f5 {[%clk 0:00:39.1]} 25. Ne7+ {[%clk 0:00:28.8]} 25... Kf8 {[%clk
0:00:38.8]} 26. Ne6+ {[%clk 0:00:21.8]} 26... Kxe7 {[%clk 0:00:38.6]} 27. Nxd8
{[%clk 0:00:20.1]} 27... Bxd1 {[%clk 0:00:32.9]} 28. Rxd1 {[%clk 0:00:15.8]}
28... Qd4+ {[%clk 0:00:19]} 29. Qxd4 {[%clk 0:00:15.6]} 29... cxd4 {[%clk
0:00:19.9]} 30. Nc6+ {[%clk 0:00:15.4]} 30... Kf6 {[%clk 0:00:14.1]} 31. Rxd4
{[%clk 0:00:14.2]} 31... Re6 {[%clk 0:00:13.7]} 32. Nb4 {[%clk 0:00:10.3]} 32...
Re1+ {[%clk 0:00:06.6]} 33. Kf2 {[%clk 0:00:09.5]} 33... Rb1 {[%clk 0:00:07.1]}
34. a4 {[%clk 0:00:08.1]} 34... Ra1 {[%clk 0:00:04.7]} 35. Nc6 {[%clk
0:00:07.4]} 35... Kg5 {[%clk 0:00:05.4]} 36. Nxa7 {[%clk 0:00:07]} 36... Ra2+
{[%clk 0:00:06.3]} 37. Kf3 {[%clk 0:00:06.8]} 37... h5 {[%clk 0:00:06]} 38. Nb5
{[%clk 0:00:06.3]} 38... g6 {[%clk 0:00:05.3]} 39. Nd6 {[%clk 0:00:06.5]} 39...
Ra3+ {[%clk 0:00:05.5]} 40. Kf2 {[%clk 0:00:06.1]} 40... Kf6 {[%clk 0:00:06.3]}
41. Rb4 {[%clk 0:00:05.8]} 41... Ke5 {[%clk 0:00:06.2]} 42. Nf7+ {[%clk
0:00:05.7]} 42... Kf6 {[%clk 0:00:06]} 43. Nd6 {[%clk 0:00:06.2]} 43... g5
{[%clk 0:00:06.4]} 44. Nb5 {[%clk 0:00:06.5]} 44... Ra2+ {[%clk 0:00:06.2]} 45.
Kf3 {[%clk 0:00:05.9]} 45... g4+ {[%clk 0:00:06.7]} 46. Ke3 {[%clk 0:00:05.3]}
46... Kg5 {[%clk 0:00:05.9]} 47. Nd6 {[%clk 0:00:04.9]} 47... h4 {[%clk
0:00:06.4]} 48. gxh4+ {[%clk 0:00:04.8]} 48... Kg6 {[%clk 0:00:06.6]} 49. h5+
{[%clk 0:00:04.6]} 49... Kg5 {[%clk 0:00:06.5]} 50. h6 {[%clk 0:00:04.6]} 50...
Ra3+ {[%clk 0:00:04.8]} 51. Kd4 {[%clk 0:00:04.5]} 51... Rh3 {[%clk 0:00:05.1]}
52. Rb5 {[%clk 0:00:04.6]} 52... g3 {[%clk 0:00:02.3]} 53. Rxf5+ {[%clk
0:00:05.1]} 53... Kg6 {[%clk 0:00:02.7]} 54. Rf8 {[%clk 0:00:05.1]} 54... Kxh6
{[%clk 0:00:03]} 55. Rg8 {[%clk 0:00:05.3]} 55... Rh4+ {[%clk 0:00:02.8]} 56.
Ke5 {[%clk 0:00:05.3]} 56... Rxa4 {[%clk 0:00:03.7]} 57. Nf5+ {[%clk 0:00:05.7]}
57... Kh7 {[%clk 0:00:03.5]} 58. Rxg3 {[%clk 0:00:06.2]} 58... Ra5+ {[%clk
0:00:04]} 59. Kf6 {[%clk 0:00:06.7]} 59... Ra6+ {[%clk 0:00:04.6]} 60. Kg5
{[%clk 0:00:07.2]} 60... Rg6+ {[%clk 0:00:04.9]} 61. Kf4 {[%clk 0:00:06.9]}
61... Rxg3 {[%clk 0:00:05.8]} 62. Nxg3 {[%clk 0:00:07.4]} 1/2-1/2